bitfinex-derivatives/quotes_BTCF0:USTF0_20260113
["timestamp","ask_amount","ask_price","bid_price","bid_amount"]
[1768302268677,0.00952826,92130.0,92121.0,0.004]
[1768302269670,0.010865,92129.0,92116.0,0.010866]
[1768302270286,0.010865,92129.0,92117.0,0.004]
[1768302270879,0.010865,92129.0,92116.0,0.010866]
[1768302271077,0.014865,92129.0,92116.0,0.014866]
[1768302271677,0.010865,92129.0,92116.0,0.010866]
[1768302271879,0.014865,92129.0,92117.0,0.004]
[1768302273186,0.010865,92129.0,92116.0,0.010866]
[1768302273386,0.015865,92129.0,92116.0,0.014866]
[1768302274182,0.010865,92127.0,92116.0,0.004]
[1768302274387,0.010865,92127.0,92117.0,0.004]
[1768302276192,0.010865,92127.0,92116.0,0.004]
[1768302276995,0.014865,92127.0,92117.0,0.004]
[1768302277496,0.010865,92126.0,92117.0,0.004]
[1768302277797,0.010865,92126.0,92114.0,0.010866]
[1768302277798,0.00968407,92116.0,92108.0,0.010867]
[1768302278293,0.00968407,92116.0,92110.0,0.010867]
[1768302278696,0.07007166,92120.0,92107.0,0.010867]
[1768302278894,0.07007166,92120.0,92108.0,0.010867]
[1768302279801,0.07007166,92118.0,92099.0,0.0978]
[1768302279997,0.00968407,92117.0,92099.0,0.0978]
[1768302280392,0.00968407,92117.0,92107.0,0.010867]
[1768302281703,0.01368407,92117.0,92109.0,0.010867]
[1768302282000,0.01368407,92117.0,92107.0,0.011]
[1768302283001,0.00968407,92117.0,92099.0,0.0978]
[1768302283204,0.01468407,92117.0,92109.0,0.004]
[1768302283406,0.01468407,92117.0,92109.0,0.014867]
[1768302284004,0.00968407,92117.0,92109.0,0.010867]
[1768302284205,0.01468407,92117.0,92109.0,0.010867]
[1768302285297,0.005,92117.0,92111.0,0.010867]
[1768302285800,0.00968407,92123.0,92111.0,0.010867]
[1768302286107,0.00968407,92123.0,92114.0,0.010866]
[1768302287717,0.02068407,92123.0,92114.0,0.014866]
[1768302289209,0.00968407,92123.0,92114.0,0.010866]
[1768302289401,0.01368407,92123.0,92114.0,0.018866]
[1768302289602,0.004,92123.0,92106.0,0.00542941]
[1768302290005,0.00968407,92127.0,92106.0,0.00542941]
[1768302290209,0.004,92123.0,92114.0,0.005]
[1768302290703,0.004,92123.0,92114.0,0.015866]
[1768302290910,0.004,92123.0,92111.0,0.010867]
[1768302291312,0.01368407,92123.0,92111.0,0.010867]
[1768302292514,0.01668407,92123.0,92114.0,0.003]
[1768302292711,0.00968407,92122.0,92114.0,0.003]
[1768302293211,0.00968407,92122.0,92111.0,0.010867]
[1768302293413,0.00968407,92122.0,92111.0,0.013867]
[1768302294112,0.01568407,92122.0,92114.0,0.004]
[1768302295914,0.00968407,92122.0,92111.0,0.010867]
[1768302296115,0.02268407,92122.0,92111.0,0.014867]
[1768302296715,0.00968407,92122.0,92111.0,0.010867]
[1768302297018,0.02368407,92122.0,92114.0,0.005]
[1768302297719,0.02368407,92122.0,92111.0,0.015867]
[1768302298021,0.02368407,92122.0,92101.0,0.010868]
[1768302298209,0.02368407,92122.0,92110.0,0.010867]
[1768302299219,0.00968407,92122.0,92110.0,0.010867]
[1768302299521,0.02668407,92122.0,92114.0,0.005]
[1768302300022,0.00968407,92122.0,92110.0,0.010867]
[1768302300223,0.02668407,92122.0,92110.0,0.015867]
[1768302300911,0.02668407,92122.0,92114.0,0.005]
[1768302301925,0.07007166,92133.0,92118.0,0.010866]
[1768302302122,0.13370157,92132.0,92114.0,0.005]
[1768302302422,0.13370157,92132.0,92105.0,0.010867]
[1768302302423,0.06038759,92136.0,92113.0,0.00649744]
[1768302302627,0.0262173,92135.0,92123.0,0.010865]
[1768302302817,0.0262173,92134.0,92123.0,0.010865]
[1768302303017,0.0262173,92133.0,92123.0,0.010865]
[1768302303222,0.0262173,92132.0,92120.0,0.010866]
[1768302303420,0.00968407,92131.0,92120.0,0.010866]
[1768302304225,0.00968407,92131.0,92117.0,0.010866]
[1768302304430,0.06038759,92123.0,92082.0,0.10864838]
[1768302304630,0.00959389,92104.0,92092.0,0.010869]
[1768302304821,0.00959389,92102.0,92079.0,0.01087]
[1768302305319,0.00959389,92102.0,92093.0,0.010869]
[1768302305720,0.00959389,92102.0,92082.0,0.01087]
[1768302305921,0.00959389,92102.0,92083.0,0.01087]
[1768302306222,0.00959389,92102.0,92079.0,0.00763302]
[1768302306223,0.01459389,92102.0,92095.0,0.010869]
[1768302306727,0.00959389,92101.0,92088.0,0.002]
[1768302306932,0.00959389,92101.0,92084.0,0.01087]
[1768302308331,0.13091917,92120.0,92083.0,0.002]
[1768302308332,0.010866,92117.0,92101.0,0.010868]
[1768302308629,0.0978,92116.0,92101.0,0.010868]
[1768302309022,0.06314253,92115.0,92101.0,0.010868]
[1768302309221,0.06314253,92115.0,92103.0,0.010868]
[1768302309628,0.06314253,92115.0,92101.0,0.008]
[1768302310029,0.06314253,92115.0,92102.0,0.010868]
[1768302310231,0.07573642,92115.0,92102.0,0.010868]
[1768302310531,0.00959389,92114.0,92102.0,0.010868]
[1768302311530,0.00959389,92113.0,92102.0,0.010868]
[1768302311732,0.00959389,92112.0,92102.0,0.010868]
[1768302312031,0.00959389,92112.0,92102.0,0.011]
[1768302312228,0.013866,92115.0,92102.0,0.011]
[1768302312229,0.00959389,92110.0,92102.0,0.011]
[1768302312433,0.07273642,92106.0,92098.0,0.010868]
[1768302312631,0.07273642,92105.0,92098.0,0.010868]
[1768302312931,0.07273642,92105.0,92089.0,0.010869]
[1768302313533,0.06314253,92109.0,92098.0,0.010868]
[1768302314733,0.06314253,92109.0,92089.0,0.02008144]
[1768302314931,0.009,92105.0,92089.0,0.02408144]
[1768302315432,0.009,92105.0,92097.0,0.010868]
[1768302315733,0.06798035,92105.0,92089.0,0.014869]
[1768302316232,0.05898035,92105.0,92089.0,0.010869]
[1768302316431,0.05898035,92105.0,92098.0,0.004]
[1768302316926,0.05898035,92108.0,92099.0,0.010868]
[1768302317133,0.05898035,92108.0,92101.0,0.010868]
[1768302317333,0.01,92109.0,92098.0,0.004]
[1768302317533,0.1078,92109.0,92098.0,0.004]
[1768302317735,3.5e-07,92104.0,92098.0,0.010868]
[1768302317927,3.5e-07,92104.0,92094.0,0.0978]
[1768302318435,3.5e-07,92104.0,92094.0,0.0948]
[1768302318834,0.009,92104.0,92098.0,0.004]
[1768302319540,0.0096545,92111.0,92098.0,0.010868]
[1768302319724,0.004,92104.0,92098.0,0.010868]
[1768302319929,0.004,92104.0,92100.0,0.010868]
[1768302320940,0.004,92104.0,92084.0,0.01087]
[1768302320941,0.05898035,92093.0,92074.0,0.010871]
[1768302321238,0.0978,92103.0,92077.0,0.009688]
[1768302321438,0.0978,92103.0,92091.0,0.010869]
[1768302321833,0.0978,92103.0,92075.0,0.010871]
[1768302321834,0.0978,92103.0,92079.0,0.07341092]
[1768302322038,0.0978,92103.0,92091.0,0.010869]
[1768302322236,0.0978,92103.0,92080.0,0.009688]
[1768302322430,0.010868,92099.0,92080.0,0.009688]
[1768302322624,0.010868,92097.0,92091.0,0.003]
[1768302322829,0.108668,92097.0,92091.0,0.003]
[1768302323436,0.16764835,92097.0,92091.0,0.003]
[1768302323631,0.05898035,92096.0,92083.0,0.01087]
[1768302323836,0.06984935,92095.0,92080.0,0.01087]
[1768302324337,0.06984935,92095.0,92077.0,0.010871]
[1768302324338,0.010869,92093.0,92077.0,0.010871]
[1768302324730,0.06984935,92093.0,92077.0,0.010871]
[1768302324930,0.06984935,92093.0,92080.0,0.001]
[1768302325740,0.08584935,92093.0,92079.0,0.010871]
[1768302326231,0.08584935,92093.0,92077.0,0.001]
[1768302326432,0.08584935,92093.0,92079.0,0.010871]
[1768302326936,0.08584935,92093.0,92077.0,0.001]
[1768302326937,0.07498035,92093.0,92081.0,0.01087]
[1768302327433,0.07598035,92093.0,92081.0,0.01087]
[1768302327739,0.07598035,92093.0,92082.0,0.01087]
[1768302327939,0.07598035,92093.0,92075.0,0.07222792]
[1768302327940,0.05898035,92105.0,92085.0,0.009688]
[1768302328234,0.05898035,92105.0,92070.0,0.13101246]
[1768302328235,0.05898035,92109.0,92089.0,0.07222792]
[1768302328436,0.0096545,92112.0,92099.0,0.010868]
[1768302328642,0.06863485,92112.0,92093.0,0.009688]
[1768302328828,0.09784,92111.0,92093.0,0.009688]
[1768302329230,0.15682035,92111.0,92093.0,0.009688]
[1768302330144,0.15682035,92111.0,92100.0,0.010868]
[1768302330531,0.13098393,92110.0,92100.0,0.010868]
[1768302331035,0.09784,92109.0,92099.0,0.010868]
[1768302331230,0.09784,92109.0,92101.0,0.010868]
[1768302333750,0.10584,92109.0,92101.0,0.014868]
[1768302333950,0.10584,92109.0,92101.0,0.004]
[1768302334447,0.09784,92109.0,92101.0,0.010868]
[1768302334642,0.10684,92109.0,92101.0,0.014868]
[1768302335038,0.009,92109.0,92101.0,0.014868]
[1768302335238,0.0096545,92115.0,92106.0,0.010867]
[1768302335549,0.0096545,92115.0,92099.0,0.13098393]
[1768302335550,0.13098393,92130.0,92110.0,0.010867]
[1768302335741,0.010865,92124.0,92110.0,0.010867]
[1768302335942,0.09784,92123.0,92110.0,0.010867]
[1768302336449,0.13098393,92120.0,92110.0,0.010867]
[1768302337252,0.004,92115.0,92110.0,0.010867]
[1768302338051,0.13398393,92120.0,92110.0,0.016867]
[1768302338637,0.13098393,92120.0,92110.0,0.010867]
[1768302338845,0.004,92115.0,92110.0,0.017867]
[1768302339045,0.004,92115.0,92110.0,0.007]
[1768302339653,0.01,98400.0,92110.0,0.007]
[1768302339654,0.09784,92126.0,92115.0,0.00924425]
[1768302339945,0.09784,92128.0,92116.0,0.14184993]
[1768302340155,0.03657341,92127.0,92110.0,0.14885093]
[1768302340344,0.005,92120.0,92110.0,0.004]
[1768302340743,0.22832098,92120.0,92110.0,0.004]
[1768302341046,0.09733705,92120.0,92110.0,0.004]
[1768302341352,0.22332098,92120.0,92107.0,0.010867]
[1768302341551,0.09233705,92119.0,92107.0,0.010867]
[1768302341754,0.09233705,92119.0,92104.0,0.00711125]
[1768302342655,0.09233705,92122.0,92109.0,0.010867]
[1768302343355,0.003,92120.0,92110.0,0.004]
[1768302344056,0.09733705,92122.0,92111.0,0.010867]
[1768302344758,0.09733705,92122.0,92110.0,0.13098393]
[1768302344759,0.09233705,92122.0,92110.0,0.13098393]
[1768302344950,0.005,92120.0,92110.0,0.13498393]
[1768302346362,0.10320305,92122.0,92110.0,0.13098393]
[1768302346556,0.10720305,92122.0,92111.0,0.003]
[1768302346756,0.004,92122.0,92112.0,0.00924425]
[1768302346956,0.004,92122.0,92113.0,0.010867]
[1768302347154,0.108665,92126.0,92113.0,0.010867]
[1768302347357,0.003,92120.0,92113.0,0.010867]
[1768302347957,0.0978,92126.0,92113.0,0.010867]
[1768302348155,0.003,92122.0,92113.0,0.02611125]
[1768302349158,0.003,92122.0,92115.0,0.010866]
[1768302349556,0.003,92122.0,92114.0,0.010866]
[1768302349957,0.010864,92135.0,92113.0,0.09600171]
[1768302350155,0.010864,92135.0,92121.0,0.010866]
[1768302350156,0.108664,92135.0,92121.0,0.010866]
[1768302350555,0.010864,92135.0,92121.0,0.010866]
[1768302350760,0.108664,92135.0,92121.0,0.010866]
[1768302350963,0.010864,92133.0,92120.0,0.13098393]
[1768302351155,0.010864,92133.0,92118.0,0.010866]
[1768302351862,0.010864,92133.0,92119.0,0.010866]
[1768302352055,0.010864,92133.0,92120.0,0.13098393]
[1768302352264,0.010864,92133.0,92121.0,0.014866]
[1768302353564,0.010864,92133.0,92121.0,0.010866]
[1768302353757,0.013864,92133.0,92121.0,0.010866]
[1768302353952,0.003,92133.0,92123.0,0.010865]
[1768302354163,0.0978,92137.0,92128.0,0.010865]
[1768302354552,0.003,92133.0,92125.0,0.010865]
[1768302355557,0.003,92133.0,92125.0,0.11611096]
[1768302355767,0.1008,92137.0,92128.0,0.005]
[1768302357258,0.003,92133.0,92125.0,0.02610925]
[1768302357956,0.0978,92137.0,92125.0,0.00910925]
[1768302358262,0.1008,92137.0,92128.0,0.005]
[1768302358453,0.003,92137.0,92128.0,0.005]
[1768302358755,0.010864,92139.0,92125.0,0.00910925]
[1768302358962,0.003,92133.0,92125.0,0.01310925]
[1768302359457,0.09233705,92144.0,92125.0,0.10911096]
[1768302359761,0.108663,92143.0,92130.0,0.13098393]
[1768302359961,0.108663,92143.0,92128.0,0.010865]
[1768302360262,0.010863,92140.0,92128.0,0.010865]
[1768302360462,0.003,92137.0,92128.0,0.015865]
[1768302361063,0.010863,92140.0,92128.0,0.010865]
[1768302361261,0.010863,92140.0,92128.0,0.014865]
[1768302361466,0.010863,92140.0,92128.0,0.004]
[1768302361856,0.010863,92140.0,92126.0,0.010865]
[1768302362066,0.003,92137.0,92128.0,0.009]
[1768302363565,0.010864,92139.0,92128.0,0.006]
[1768302364163,0.010864,92139.0,92126.0,0.010865]
[1768302364368,0.003,92137.0,92128.0,0.007]
[1768302364961,0.0978,92143.0,92127.0,0.00951898]
[1768302365265,0.003,92139.0,92128.0,0.009]
[1768302365857,0.003,92139.0,92127.0,0.00738298]
[1768302366058,0.003,92139.0,92128.0,0.010865]
[1768302366258,0.003,92139.0,92129.0,0.010865]
[1768302366459,0.003,92139.0,92129.0,0.14184893]
[1768302366666,0.003,92139.0,92134.0,0.010864]
[1768302366868,0.003,92139.0,92132.0,0.010864]
[1768302367671,0.007,92137.0,92132.0,0.010864]
[1768302368061,0.007,92137.0,92130.0,0.010865]
[1768302368366,0.0978,92142.0,92132.0,0.003]
[1768302368367,0.01,92139.0,92132.0,0.003]
[1768302369963,0.01,92139.0,92130.0,0.010865]
[1768302370157,0.011,92137.0,92130.0,0.013865]
[1768302370558,0.010863,92145.0,92131.0,0.010864]
[1768302370759,0.010863,92144.0,92131.0,0.010864]
[1768302370956,0.009,92139.0,92132.0,0.003]
[1768302371664,0.009,92139.0,92130.0,0.13098393]
[1768302371665,0.010863,92143.0,92131.0,0.003]
[1768302373371,0.004,92139.0,92132.0,0.002]
[1768302373669,0.004,92139.0,92130.0,0.12398393]
[1768302374071,0.010863,92143.0,92130.0,0.12398393]
[1768302374271,0.023863,92143.0,92131.0,0.003]
[1768302374866,0.010863,92142.0,92130.0,0.12398393]
[1768302375066,0.012,92139.0,92130.0,0.12698393]
[1768302376372,0.010863,92142.0,92131.0,0.002]
[1768302377268,0.011,92139.0,92130.0,0.12698393]
[1768302377869,0.010863,92142.0,92130.0,0.12398393]
[1768302378068,0.022863,92142.0,92131.0,0.003]
[1768302379473,0.006,92139.0,92130.0,0.13684793]
[1768302380069,0.010863,92142.0,92130.0,0.13484793]
[1768302380373,0.015863,92142.0,92131.0,0.002]
[1768302380865,0.010863,92142.0,92130.0,0.13484793]
[1768302381065,0.004,92139.0,92130.0,0.13684793]
[1768302381266,0.004,92139.0,92130.0,0.10484793]
[1768302381772,0.004,92139.0,92132.0,0.010864]
[1768302382374,0.010863,92144.0,92132.0,0.010864]
[1768302382571,0.006,92142.0,92132.0,0.010864]
[1768302383168,0.009,92139.0,92132.0,0.013864]
[1768302384177,0.01,92142.0,92132.0,0.013864]
[1768302385379,0.010863,92143.0,92132.0,0.010864]
[1768302385580,0.007,92139.0,92132.0,0.012864]
[1768302386279,0.003,92142.0,92132.0,0.011864]
[1768302387079,0.002,92139.0,92132.0,0.011864]
[1768302388374,0.010863,92146.0,92132.0,0.010864]
[1768302388571,0.007,92142.0,92132.0,0.012864]
[1768302389078,0.007,92142.0,92129.0,0.22515344]
[1768302389274,0.009,92139.0,92132.0,0.002]
[1768302389980,0.010863,92145.0,92130.0,0.010865]
[1768302390182,0.01,92142.0,92132.0,0.002]
[1768302391174,0.010862,92153.0,92139.0,0.09730551]
[1768302391375,0.02512702,92152.0,92139.0,0.09730551]
[1768302391686,0.02512702,92151.0,92142.0,0.010863]
[1768302391885,0.02512702,92150.0,92142.0,0.010863]
[1768302392075,0.02512702,92149.0,92142.0,0.010863]
[1768302392275,0.010862,92155.0,92142.0,0.010863]
[1768302392577,0.01,92153.0,92145.0,0.010863]
[1768302392770,0.02512659,92152.0,92145.0,0.010863]
[1768302393184,0.007,92149.0,92143.0,0.010863]
[1768302394686,0.004,92152.0,92145.0,0.001]
[1768302395283,0.010862,92157.0,92143.0,0.010863]
[1768302395486,0.005,92149.0,92143.0,0.011863]
[1768302395680,0.010862,92157.0,92143.0,0.011863]
[1768302395885,0.02512483,92156.0,92144.0,0.010863]
[1768302396085,0.02512483,92155.0,92146.0,0.010863]
[1768302396380,0.0978,92159.0,92146.0,0.010863]
[1768302396585,0.0251225,92158.0,92143.0,0.001]
[1768302396781,0.0251225,92157.0,92143.0,0.001]
[1768302396982,0.0978,92159.0,92143.0,0.001]
[1768302397183,0.0978,92159.0,92148.0,0.010862]
[1768302398179,0.001,92159.0,92148.0,0.010862]
[1768302398387,0.001,92159.0,92143.0,0.10044237]
[1768302398875,0.0978,92162.0,92143.0,0.10044237]
[1768302398876,0.0978,92162.0,92143.0,0.09644237]
[1768302399074,0.001,92159.0,92148.0,0.004]
[1768302399274,0.001,92159.0,92151.0,0.010862]
[1768302400390,0.00958212,92163.0,92151.0,0.010862]
[1768302400586,0.02511422,92162.0,92153.0,0.010862]
[1768302400889,0.001,92159.0,92153.0,0.010862]
[1768302401086,0.001,92159.0,92143.0,0.001]
[1768302401087,0.09730011,92171.0,92161.0,0.010861]
[1768302401284,0.02511479,92170.0,92151.0,0.09644237]
[1768302401488,0.001,92163.0,92152.0,0.09644237]
[1768302401690,0.00958212,92174.0,92152.0,0.1056886]
[1768302401890,0.0978,92172.0,92154.0,0.09644237]
[1768302402082,0.02511106,92171.0,92154.0,0.09644237]
[1768302402386,0.03597106,92171.0,92161.0,0.004]
[1768302402577,0.02511106,92170.0,92161.0,0.004]
[1768302402782,0.02511106,92169.0,92161.0,0.004]
[1768302402985,0.09730011,92171.0,92161.0,0.004]
[1768302403190,0.12240781,92170.0,92157.0,0.010861]
[1768302403383,0.0251077,92169.0,92157.0,0.010861]
[1768302403584,0.10816011,92170.0,92150.0,0.09644237]
[1768302403785,0.02510497,92169.0,92154.0,0.001]
[1768302403987,0.11774223,92170.0,92154.0,0.001]
[1768302404386,0.11774223,92170.0,92156.0,0.010861]
[1768302404594,0.003,92169.0,92157.0,0.001]
[1768302405089,0.003,92169.0,92156.0,0.010861]
[1768302405390,0.12074223,92170.0,92158.0,0.010861]
[1768302405791,0.12074223,92170.0,92154.0,0.001]
[1768302406588,0.10688223,92170.0,92158.0,0.010861]
[1768302406788,0.005,92169.0,92158.0,0.010861]
[1768302407389,0.10688223,92170.0,92158.0,0.010861]
[1768302407596,0.11388223,92170.0,92154.0,0.001]
[1768302407996,0.11388223,92170.0,92161.0,0.010861]
[1768302408190,0.10688223,92170.0,92150.0,0.07944237]
[1768302408392,0.007,92169.0,92162.0,0.010861]
[1768302408696,0.007,92169.0,92158.0,0.001]
[1768302409091,0.007,92169.0,92161.0,0.010861]
[1768302409400,0.11388223,92169.0,92152.0,0.010862]
[1768302409596,0.10688223,92169.0,92152.0,0.010862]
[1768302409793,0.10688223,92169.0,92154.0,0.001]
[1768302410296,0.004,92170.0,92156.0,0.1056886]
[1768302410495,0.0023867,92178.0,92169.0,0.01086]
[1768302411097,0.0023867,92178.0,92166.0,0.01086]
[1768302411401,0.10926893,92178.0,92166.0,0.01086]
[1768302411796,0.10926893,92178.0,92168.0,0.01086]
[1768302412003,0.10926893,92178.0,92159.0,0.09644237]
[1768302412203,0.10688223,92173.0,92154.0,0.001]
[1768302412399,0.10688223,92172.0,92154.0,0.001]
[1768302412702,0.10688223,92169.0,92159.0,0.010861]
[1768302412898,0.00958212,92169.0,92159.0,0.010861]
[1768302413300,0.01086,92173.0,92159.0,0.010861]
[1768302413700,0.11774223,92173.0,92159.0,0.010861]
[1768302414201,0.004,92169.0,92159.0,0.011861]
[1768302414905,0.12374223,92173.0,92159.0,0.011861]
[1768302415405,0.11288223,92173.0,92161.0,0.010861]
[1768302415603,0.006,92173.0,92159.0,0.001]
[1768302415805,0.006,92173.0,92160.0,0.09644237]
[1768302416000,0.006,92173.0,92167.0,0.01086]
[1768302416196,0.09968681,92178.0,92167.0,0.01086]
[1768302416392,0.09730011,92176.0,92159.0,0.004]
[1768302416697,0.10688223,92174.0,92166.0,0.01086]
[1768302417209,0.001,92173.0,92167.0,0.005]
[1768302417909,0.10788223,92174.0,92166.0,0.01586]
[1768302418408,0.001,92174.0,92166.0,0.005]
[1768302419307,0.09730011,92177.0,92158.0,0.09644237]
[1768302419509,0.001,92173.0,92167.0,0.01086]
[1768302419699,0.001,92173.0,92158.0,0.09644237]
[1768302419897,0.001,92173.0,92169.0,0.01086]
[1768302420209,0.0023867,92178.0,92169.0,0.01086]
[1768302420408,0.001,92174.0,92171.0,0.01086]
[1768302420707,0.0023867,92178.0,92171.0,0.01086]
[1768302422609,0.0033867,92178.0,92171.0,0.01886]
[1768302423810,0.0023867,92178.0,92171.0,0.01086]
[1768302424012,0.010858,92187.0,92175.0,0.010859]
[1768302424306,0.07196626,92186.0,92175.0,0.010859]
[1768302424511,0.04707683,92186.0,92175.0,0.010859]
[1768302424805,0.09776,92188.0,92171.0,0.10030914]
[1768302425011,0.03574799,92187.0,92174.0,0.010859]
[1768302425206,0.09776,92188.0,92176.0,0.010859]
[1768302425412,0.0248898,92187.0,92176.0,0.010859]
[1768302425714,0.09776,92188.0,92176.0,0.010859]
[1768302425914,0.0248898,92187.0,92176.0,0.010859]
[1768302426116,0.010858,92189.0,92176.0,0.010859]
[1768302426309,0.12965082,92188.0,92176.0,0.010859]
[1768302426508,0.02489082,92187.0,92176.0,0.010859]
[1768302426717,0.02489082,92187.0,92177.0,0.010859]
[1768302427107,0.01533307,92185.0,92169.0,0.010861]
[1768302427306,0.11761449,92184.0,92167.0,0.010861]
[1768302427508,0.10805674,92184.0,92167.0,0.006861]
[1768302427711,0.10805674,92184.0,92177.0,0.01086]
[1768302428010,0.10805674,92183.0,92167.0,0.010861]
[1768302428322,0.10805674,92183.0,92177.0,0.01086]
[1768302428621,0.10805674,92183.0,92167.0,0.010861]
[1768302429118,0.10805674,92183.0,92177.0,0.001]
[1768302429312,0.10805674,92183.0,92167.0,0.010861]
[1768302429819,0.10805674,92183.0,92177.0,0.01086]
[1768302430019,0.10905674,92183.0,92168.0,0.010861]
[1768302431317,0.01633307,92183.0,92176.0,0.01086]
[1768302431517,0.01633307,92183.0,92168.0,0.010861]
[1768302431933,0.01633307,92183.0,92177.0,0.002]
[1768302432120,0.01633307,92183.0,92168.0,0.010861]
[1768302432812,0.01633307,92183.0,92175.0,0.01086]
[1768302433017,0.01633307,92183.0,92168.0,0.013861]
[1768302433521,0.01633307,92183.0,92177.0,0.01086]
[1768302433721,0.01633307,92183.0,92168.0,0.013861]
[1768302434420,0.09776,92188.0,92169.0,0.09230914]
[1768302434622,0.13089076,92210.0,92188.0,0.010859]
[1768302434817,0.12265481,92207.0,92190.0,0.010859]
[1768302435122,0.12265481,92206.0,92183.0,0.11773228]
[1768302435420,0.06264252,92208.0,92181.0,0.01086]
[1768302435421,0.12265481,92205.0,92186.0,0.09882257]
[1768302435611,8.1e-07,92204.0,92197.0,0.09882257]
[1768302435815,0.09776,92207.0,92201.0,0.010857]
[1768302436313,0.004,92207.0,92194.0,0.09882257]
[1768302436619,0.00238592,92208.0,92196.0,0.11773228]
[1768302436814,0.00238592,92208.0,92201.0,0.001]
[1768302437323,0.00238592,92208.0,92202.0,0.010857]
[1768302438117,9.2e-07,92208.0,92206.0,0.010857]
[1768302438317,0.07782099,92214.0,92206.0,0.010857]
[1768302438918,0.07782099,92214.0,92203.0,0.010857]
[1768302439118,0.01872793,92212.0,92202.0,0.010857]
[1768302439313,0.06455449,92233.0,92196.0,0.004]
[1768302439314,0.00542105,92233.0,92208.0,0.09882257]
[1768302439517,0.09776,92232.0,92210.0,0.11773228]
[1768302439723,0.010855,92225.0,92206.0,0.014857]
[1768302439928,0.010854,92228.0,92206.0,0.004]
[1768302440520,0.010854,92226.0,92210.0,0.019856]
[1768302441020,0.0002173,92225.0,92210.0,0.019856]
[1768302442027,0.0002173,92225.0,92210.0,0.010856]
[1768302442419,0.0002173,92225.0,92207.0,0.010857]
[1768302442922,0.010855,92218.0,92210.0,0.002]
[1768302443125,0.010855,92221.0,92210.0,0.002]
[1768302443631,0.010855,92221.0,92207.0,0.008]
[1768302443930,0.010855,92219.0,92207.0,0.008]
[1768302444220,0.0002173,92225.0,92207.0,0.008]
[1768302444426,0.010855,92220.0,92207.0,0.008]
[1768302444820,0.010856,92216.0,92207.0,0.008]
[1768302445020,0.010856,92216.0,92204.0,0.09882257]
[1768302445320,0.010856,92216.0,92204.0,0.09582257]
[1768302446029,0.010856,92216.0,92207.0,0.004]
[1768302446530,0.010856,92216.0,92204.0,0.11473228]
[1768302446723,0.012856,92216.0,92204.0,0.12673228]
[1768302447226,0.012856,92216.0,92205.0,0.11773228]
[1768302448025,0.010856,92216.0,92205.0,0.11773228]
[1768302450324,0.02958193,92228.0,92205.0,0.01890971]
[1768302450529,0.0002878,92223.0,92205.0,0.01890971]
[1768302451224,0.0002878,92223.0,92205.0,0.11773228]
[1768302451428,0.1306915,92220.0,92205.0,0.11773228]
[1768302451832,0.002,92223.0,92205.0,0.11773228]
[1768302452129,0.010856,92216.0,92205.0,0.11773228]
[1768302452625,0.010856,92214.0,92205.0,0.11773228]
[1768302452826,0.1336915,92220.0,92205.0,0.10873228]
[1768302453026,0.01872793,92214.0,92189.0,0.09882257]
[1768302453223,0.14941943,92210.0,92190.0,0.1415505]
[1768302453529,0.010857,92204.0,92190.0,0.1415505]
[1768302453728,0.010857,92204.0,92190.0,0.24037307]
[1768302454031,0.010857,92204.0,92191.0,0.09882257]
[1768302455026,0.012857,92204.0,92191.0,0.09882257]
[1768302455427,0.002,92204.0,92196.0,0.010858]
[1768302455627,0.002,92204.0,92194.0,0.02135582]
[1768302455828,0.1306915,92210.0,92198.0,0.010858]
[1768302456433,0.1306915,92210.0,92201.0,0.010857]
[1768302456732,0.010856,92215.0,92201.0,0.010857]
[1768302457431,0.010855,92218.0,92203.0,0.010857]
[1768302457632,0.010856,92217.0,92204.0,0.010857]
[1768302458131,0.00293936,92219.0,92199.0,0.09645496]
[1768302458523,0.00208688,92218.0,92199.0,0.09645496]
[1768302458735,0.00208688,92218.0,92204.0,0.001]
[1768302459534,0.010856,92216.0,92204.0,0.001]
[1768302460526,0.010856,92216.0,92203.0,0.010857]
[1768302461430,0.017856,92216.0,92204.0,0.001]
[1768302461932,0.017856,92216.0,92204.0,0.011857]
[1768302462128,0.007,92216.0,92204.0,0.001]
[1768302462726,0.007,92216.0,92200.0,0.1306915]
[1768302462922,0.010856,92213.0,92200.0,0.1415485]
[1768302463321,0.010856,92213.0,92200.0,0.010857]
[1768302464832,0.012856,92213.0,92200.0,0.010857]
[1768302465528,0.010856,92213.0,92200.0,0.010857]
[1768302465729,0.011856,92213.0,92200.0,0.010857]
[1768302465929,0.1306915,92210.0,92200.0,0.010857]
[1768302466330,0.1306915,92210.0,92202.0,0.010857]
[1768302466536,0.1306915,92212.0,92197.0,0.11781078]
[1768302466732,0.001,92213.0,92197.0,0.11781078]
[1768302466928,0.001,92213.0,92198.0,0.11781078]
[1768302467133,0.1306915,92220.0,92206.0,0.11781078]
[1768302467335,0.007,92213.0,92206.0,0.11781078]
[1768302467531,0.007,92213.0,92203.0,0.010857]
[1768302467738,0.007,92213.0,92200.0,0.1316915]
[1768302468038,0.010856,92213.0,92201.0,0.010857]
[1768302468343,0.016856,92213.0,92201.0,0.010857]
[1768302469043,0.006,92213.0,92200.0,0.001]
[1768302469244,0.006,92213.0,92190.0,0.1306915]
[1768302469459,0.006,92213.0,92191.0,0.11781078]
[1768302469642,0.010856,92210.0,92194.0,0.09645496]
[1768302470033,0.010856,92210.0,92194.0,0.11781078]
[1768302470548,0.010856,92210.0,92197.0,0.09645496]
[1768302470842,0.010856,92209.0,92197.0,0.09645496]
[1768302471038,0.001,92213.0,92197.0,0.09645496]
[1768302471244,0.02254691,92217.0,92197.0,0.09645496]
[1768302471944,0.002,92209.0,92199.0,0.010857]